fUST/lending_fUST_20250819
["ID","MTS","AMOUNT","RATE_DAILY","PERIOD"]
[380140262,1755571846723,-480.0,0.00019452,2]
[380140263,1755571846732,-480.0,0.00019452,2]
[380140264,1755571846742,-864.85,0.00019452,2]
[380140265,1755571846752,-940.49,0.00019452,2]
[380140266,1755571846761,-2244.38,0.00019452,2]
[380140267,1755571846771,-480.0,0.00019452,2]
[380140268,1755571846781,-480.0,0.00019452,2]
[380140269,1755571846790,-480.0,0.00019452,2]
[380140270,1755571846800,-480.0,0.00019452,2]
[380140271,1755571846810,-480.0,0.00019452,2]
[380140272,1755571846819,-480.0,0.00019452,2]
[380140273,1755571846828,-480.0,0.00019452,2]
[380140274,1755571846837,-579.74,0.00019452,2]
[380140275,1755571846847,-480.0,0.00019452,2]
[380140276,1755571846857,-689.29,0.00019452,2]
[380140277,1755571846866,-403.305264,0.00019452,2]
[380140278,1755571846875,-480.0,0.00019452,2]
[380140279,1755571846886,-403.305264,0.00019452,2]
[380140280,1755571846895,-151.0,0.00019452,2]
[380140281,1755571846905,-1036.413818,0.00019452,2]
[380140282,1755571846915,-1793.73,0.00019452,2]
[380140283,1755571846925,-151.0,0.00019452,2]
[380140284,1755571846934,-1036.413818,0.00019452,2]
[380140285,1755571846943,-403.305264,0.00019452,2]
[380140286,1755571846952,-1084.95,0.00019452,2]
[380140287,1755571846962,-403.305264,0.00019452,2]
[380140288,1755571846971,-151.0,0.00019452,2]
[380140290,1755571846980,-283.24388,0.00019452,2]
[380140291,1755571846989,-151.0,0.00019452,2]
[380140292,1755571846999,-480.0,0.00019452,2]
[380140293,1755571847012,-154.004068,0.00019452,2]
[380140294,1755571847022,-1036.413818,0.00019452,2]
[380140295,1755571847031,-418.589448,0.00019452,2]
[380140296,1755571847040,-1036.413818,0.00019452,2]
[380140297,1755571847050,-418.589448,0.00019452,2]
[380140298,1755571847060,-480.0,0.00019452,2]
[380140299,1755571847069,-418.589448,0.00019452,2]
[380140300,1755571847082,-151.0,0.00019452,2]
[380140301,1755571847093,-418.589448,0.00019452,2]
[380140302,1755571847103,-151.0,0.00019452,2]
[380140303,1755571847112,-480.0,0.00019452,2]
[380140304,1755571847122,-824.97,0.00019452,2]
[380140305,1755571847131,-2022.0,0.00019452,2]
[380140306,1755571847140,-480.0,0.00019452,2]
[380140307,1755571847149,-480.0,0.00019452,2]
[380140308,1755571847159,-7332.65,0.00019452,2]
[380140309,1755571847168,-151.0,0.00019452,2]
[380140310,1755571847177,-261.80758,0.00019452,2]
[380140311,1755571847186,-480.0,0.00019452,2]
[380140312,1755571847196,-480.0,0.00019452,2]
[380140313,1755571847205,-480.0,0.00019452,2]
[380140314,1755571847214,-480.0,0.00019452,2]
[380140315,1755571847223,-480.0,0.00019452,2]
[380140316,1755571847233,-161.530892,0.00019452,2]
[380140317,1755571847242,-161.530892,0.00019452,2]
[380140318,1755571847251,-480.0,0.00019452,2]
[380140319,1755571847261,-152.2769323,0.00019452,2]
[380140320,1755571847270,-161.530892,0.00019452,2]
[380140321,1755571847280,-725.84,0.00019452,2]
[380140322,1755571847290,-480.0,0.00019452,2]
[380140323,1755571847299,-161.530892,0.00019452,2]
[380140324,1755571847308,-480.0,0.00019452,2]
[380140325,1755571847318,-2434.97,0.00019452,2]
[380140326,1755571847327,-151.0,0.00019452,2]
[380140327,1755571847337,-151.0,0.00019452,2]
[380140328,1755571847346,-480.0,0.00019452,2]
[380140329,1755571847355,-480.0,0.00019452,2]
[380140330,1755571847365,-480.0,0.00019452,2]
[380140331,1755571847374,-151.040936,0.00019452,2]
[380140332,1755571847383,-480.0,0.00019452,2]
[380140333,1755571847392,-576.65,0.00019452,2]
[380140334,1755571847401,-151.0,0.00019452,2]
[380140335,1755571847411,-151.0,0.00019452,2]
[380140336,1755571847420,-521.0,0.00019452,2]
[380140337,1755571847430,-151.0,0.00019452,2]
[380140338,1755571847439,-151.0,0.00019452,2]
[380140339,1755571847449,-724.33,0.00019452,2]
[380140340,1755571847458,-480.0,0.00019452,2]
[380140341,1755571847467,-266.1040576,0.00019452,2]
[380140342,1755571847476,-1111.68,0.00019452,2]
[380140343,1755571847486,-480.0,0.00019452,2]
[380140344,1755571847495,-480.0,0.00019452,2]
[380140345,1755571847504,-1153.12,0.00019452,2]
[380140346,1755571847513,-483.18637198,0.00019452,2]
[380140347,1755571847522,-384.57688049,0.00019452,2]
[380140348,1755571847532,-480.0,0.00019452,2]
[380140349,1755571847541,-483.32153543,0.00019452,2]
[380140350,1755571847550,-480.0,0.00019452,2]
[380140351,1755571847560,-151.0,0.00019452,2]
[380140352,1755571847570,-152.364018,0.00019452,2]
[380140353,1755571847579,-500.0,0.00019452,2]
[380140354,1755571847589,-200.0,0.00019459,20]
[380140355,1755571847599,-200.0,0.00019459,20]
[380140356,1755571847608,-200.0,0.00019459,20]
[380140357,1755571847618,-200.0,0.00019459,20]
[380140358,1755571847628,-200.0,0.00019459,20]
[380140359,1755571847637,-200.0,0.00019459,20]
[380140360,1755571847647,-200.0,0.00019459,20]
[380140361,1755571847657,-200.0,0.00019459,20]
[380140362,1755571847666,-200.0,0.00019459,20]
[380140363,1755571847676,-200.0,0.00019459,20]
[380140364,1755571847685,-200.0,0.00019459,20]
[380140365,1755571847695,-200.0,0.00019459,20]
[380140366,1755571847704,-200.0,0.00019459,20]
[380140367,1755571847713,-200.0,0.00019459,20]
[380140368,1755571847723,-200.0,0.00019459,20]
[380140369,1755571847732,-200.0,0.00019459,20]
[380140370,1755571847815,-200.0,0.00019459,20]
[380140371,1755571847824,-200.0,0.00019459,20]
[380140372,1755571847834,-200.0,0.00019459,20]
[380140373,1755571847844,-200.0,0.00019459,20]
[380140374,1755571847853,-834.71692848,0.00019466,2]
[380140375,1755571847862,-210.46484385,0.00019473,2]
[380140376,1755571847872,-500.0,0.00019473,2]
[380140377,1755571847881,-500.0,0.00019473,2]
[380140378,1755571847892,-500.0,0.00019473,2]
[380140379,1755571847901,-509.24419611,0.00019473,2]
[380140380,1755571847911,-243.56838146,0.00019473,2]
[380140381,1755571847920,-596.32567463,0.00019473,2]
[380140382,1755571847930,-500.0,0.00019473,2]
[380140383,1755571847939,-500.0,0.00019473,2]
[380140384,1755571847948,-500.0,0.00019473,2]
[380140385,1755571847958,-500.0,0.00019473,2]
[380140386,1755571847967,-500.0,0.00019473,2]
[380140387,1755571847976,-500.0,0.00019473,2]
[380140388,1755571847986,-500.0,0.00019473,2]
[380140389,1755571847996,-500.0,0.00019473,2]
[380140390,1755571848008,-500.0,0.00019473,2]
[380140391,1755571848017,-500.0,0.00019473,2]
[380140392,1755571848026,-500.0,0.00019473,2]
[380140393,1755571848036,-501.62085001,0.00019473,2]
[380140394,1755571848047,-500.0,0.00019473,2]
[380140395,1755571848057,-500.0,0.00019473,2]
[380140396,1755571848067,-500.47810497,0.00019473,2]
[380140397,1755571848076,-501.56715421,0.00019473,2]
[380140398,1755571848086,-505.02914576,0.00019473,2]
[380140399,1755571848096,-502.00043221,0.00019473,2]
[380140400,1755571848107,-500.95299113,0.00019473,2]
[380140401,1755571848116,-500.0,0.00019473,2]
[380140402,1755571848126,-500.0,0.00019473,2]
[380140403,1755571848135,-500.0,0.00019473,2]
[380140404,1755571848145,-500.0,0.00019473,2]
[380140405,1755571848154,-500.0,0.00019473,2]
[380140406,1755571848164,-173.78036156,0.00019473,2]
[380140407,1755571848174,-500.0,0.00019473,2]
[380140408,1755571848183,-196.1566654,0.00019473,2]
[380140409,1755571848192,-500.0,0.00019473,2]
[380140410,1755571848201,-500.0,0.00019473,2]
[380140411,1755571848210,-500.0,0.00019473,2]
[380140412,1755571848220,-500.0,0.00019473,2]
[380140413,1755571848229,-500.0,0.00019473,2]
[380140414,1755571848238,-500.0,0.00019473,2]
[380140415,1755571848248,-151.0,0.000195,2]
[380140416,1755571848257,-1004.52874,0.000195,2]
[380140417,1755571848267,-153.0,0.000195,2]
[380140418,1755571848277,-153.0,0.000195,2]
[380140419,1755571848286,-600.0,0.00019561,20]
[380140420,1755571848295,-791.974,0.00019598,2]
[380140421,1755571848304,-179.96321779,0.00019598,2]
[380140422,1755571848313,-151.0,0.000196,2]
[380140423,1755571848322,-298.6842467,0.00019671,2]
[380140424,1755571848332,-153.0,0.00019699,2]
[380140425,1755571848341,-306.0,0.00019699,2]
[380140426,1755571848351,-153.0,0.00019699,2]
[380140427,1755571848359,-153.0,0.00019699,2]
[380140428,1755571848369,-151.0,0.000197,2]
[380140429,1755571848379,-151.0,0.000197,2]
[380140430,1755571848388,-151.0,0.000197,2]
[380140431,1755571848397,-647.0,0.000197,2]
[380140432,1755571848406,-175.81290573,0.00019717,2]
[380140433,1755571848416,-517.51891633,0.00019721,2]
[380140434,1755571848425,-200.0,0.00019725,2]
[380140435,1755571848434,-202.98289716,0.00019725,2]
[380140436,1755571848443,-442.0,0.00019726,2]
[380140437,1755571848453,-304.00320638,0.00019726,2]
[380140438,1755571848462,-152.23372552,0.00019726,2]
[380140439,1755571848472,-500.0,0.00019726,2]
[380140440,1755571848482,-256.94975458,0.00019726,2]
[380140441,1755571848491,-151.0,0.00019726,2]
[380140442,1755571848499,-151.0,0.00019726,2]
[380140443,1755571848509,-563.86601324,0.00019726,2]
[380140444,1755571848518,-410.11507356,0.00019726,2]
[380140445,1755571848527,-151.0,0.00019726,2]
[380140446,1755571848536,-151.0,0.00019726,2]
[380140447,1755571848545,-151.47622451,0.00019726,2]
[380140448,1755571848554,-151.0,0.00019726,2]
[380140449,1755571848564,-199.40060872,0.00019726,2]
[380140450,1755571848574,-500.0,0.00019726,2]
[380140451,1755571848583,-263.59844301,0.00019726,2]
[380140452,1755571848592,-200.1113618,0.00019726,2]
[380140453,1755571848601,-151.0,0.00019726,2]
[380140454,1755571848610,-480.0,0.00019726,2]
[380140455,1755571848620,-480.0,0.00019726,2]
[380140456,1755571848629,-151.0,0.00019726,2]
[380140457,1755571848638,-151.0,0.00019726,2]
[380140458,1755571848648,-151.0,0.00019726,2]
[380140459,1755571848657,-259.684581,0.00019726,2]
[380140460,1755571848666,-480.0,0.00019726,2]
[380140461,1755571848676,-273.697609,0.00019726,2]
[380140462,1755571848685,-151.0,0.00019726,2]
[380140463,1755571848695,-151.0,0.00019726,2]
[380140464,1755571848704,-503.94,0.00019726,2]
[380140465,1755571848713,-480.0,0.00019726,2]
[380140466,1755571848723,-480.0,0.00019726,2]
[380140467,1755571848731,-151.0,0.00019726,2]
[380140468,1755571848740,-151.0,0.00019726,2]
[380140469,1755571848750,-481.14141881,0.00019726,2]
[380140470,1755571848759,-480.0,0.00019726,2]
[380140471,1755571848768,-480.0,0.00019726,2]
[380140472,1755571848778,-151.0,0.00019726,2]
[380140473,1755571848787,-151.0,0.00019726,2]
[380140474,1755571848797,-151.0,0.00019726,2]
[380140475,1755571848806,-242.406547,0.00019726,2]
[380140476,1755571848815,-291.458912,0.00019726,2]
[380140477,1755571848825,-305.59694148,0.00019726,2]
[380140478,1755571848834,-3975.87,0.00019726,2]
[380140479,1755571848843,-151.646839,0.00019726,2]
[380140480,1755571848853,-420.84557211,0.00019726,2]
[380140481,1755571848862,-658.64,0.00019726,2]
[380140482,1755571848872,-480.0,0.00019726,2]
[380140483,1755571848881,-480.0,0.00019726,2]
[380140484,1755571848890,-151.0,0.00019726,2]
[380140485,1755571848900,-151.0,0.00019726,2]
[380140486,1755571848911,-151.0,0.00019726,2]
[380140487,1755571848920,-151.0,0.00019726,2]
[380140488,1755571848929,-728.69,0.00019726,2]
[380140489,1755571848939,-151.0,0.00019726,2]
[380140490,1755571848950,-151.0,0.00019726,2]
[380140491,1755571848959,-480.0,0.00019726,2]
[380140492,1755571848968,-480.0,0.00019726,2]
[380140493,1755571848977,-480.0,0.00019726,2]
[380140494,1755571848986,-463.98850853,0.00019726,2]
[380140495,1755571848995,-780.52,0.00019726,2]
[380140496,1755571849008,-480.0,0.00019726,2]
[380140497,1755571849018,-413.03631376,0.00019726,2]
[380140498,1755571849027,-151.0,0.00019726,2]
[380140499,1755571849036,-151.0,0.00019726,2]
[380140500,1755571849046,-480.0,0.00019726,2]
[380140501,1755571849056,-484.19684791,0.00019726,2]
[380140502,1755571849065,-151.0,0.00019726,2]
[380140503,1755571849076,-480.0,0.00019726,2]
[380140504,1755571849085,-151.0,0.00019726,2]
[380140505,1755571849095,-151.0,0.00019726,2]
[380140506,1755571849104,-151.0,0.00019726,2]
[380140507,1755571849113,-480.0,0.00019726,2]
[380140508,1755571849123,-151.0,0.00019726,2]
[380140509,1755571849133,-151.744069,0.00019726,2]
[380140510,1755571849142,-480.0,0.00019726,2]
[380140511,1755571849152,-2567.44,0.00019726,2]
[380140512,1755571849163,-151.0,0.00019726,2]
[380140513,1755571849172,-151.0,0.00019726,2]
[380140514,1755571849254,-480.0,0.00019726,2]
[380140515,1755571849264,-480.0,0.00019726,2]
[380140516,1755571849273,-480.0,0.00019726,2]
[380140517,1755571849283,-480.0,0.00019726,2]
[380140518,1755571849292,-480.0,0.00019726,2]
[380140519,1755571849302,-738.51,0.00019726,2]
[380140520,1755571849311,-480.0,0.00019726,2]
[380140521,1755571849320,-151.0,0.00019726,2]
[380140522,1755571849330,-151.0,0.00019726,2]
[380140523,1755571849339,-480.0,0.00019726,2]
[380140524,1755571849348,-480.0,0.00019726,2]
[380140525,1755571849357,-480.0,0.00019726,2]
[380140526,1755571849367,-480.0,0.00019726,2]
[380140527,1755571849376,-480.0,0.00019726,2]
[380140528,1755571849385,-151.0,0.00019726,2]
[380140529,1755571849395,-153.600496,0.00019726,2]
[380140530,1755571849404,-480.0,0.00019726,2]
[380140531,1755571849415,-245.23243078,0.00019726,2]
[380140532,1755571849424,-151.0,0.00019726,2]
[380140533,1755571849434,-260.989484,0.00019726,2]
[380140534,1755571849443,-278.039198,0.00019726,2]
[380140535,1755571849452,-278.039198,0.00019726,2]
[380140536,1755571849462,-278.039198,0.00019726,2]
[380140537,1755571849471,-278.039198,0.00019726,2]
[380140538,1755571849481,-480.0,0.00019726,2]
[380140539,1755571849490,-824.41,0.00019726,2]
[380140540,1755571849499,-480.0,0.00019726,2]
[380140541,1755571849508,-480.0,0.00019726,2]
[380140542,1755571849518,-615.77223041,0.00019726,2]
[380140543,1755571849527,-480.0,0.00019726,2]
[380140544,1755571849536,-835.462793,0.00019726,2]
[380140545,1755571849546,-835.462793,0.00019726,2]
[380140546,1755571849556,-620.84124652,0.00019726,2]
[380140547,1755571849565,-835.462793,0.00019726,2]
[380140548,1755571849575,-151.0,0.00019726,2]
[380140549,1755571849585,-835.462793,0.00019726,2]
[380140550,1755571849595,-151.0,0.00019726,2]
[380140551,1755571849604,-480.0,0.00019726,2]
[380140552,1755571849613,-3849.98,0.00019726,2]
[380140553,1755571849622,-3849.98,0.00019726,2]
[380140554,1755571849631,-822.38,0.00019726,2]
[380140555,1755571849641,-155.770809,0.00019726,2]
[380140556,1755571849650,-155.770809,0.00019726,2]
[380140557,1755571849659,-155.770809,0.00019726,2]
[380140558,1755571849668,-155.770809,0.00019726,2]
[380140559,1755571849678,-480.0,0.00019726,2]
[380140560,1755571849687,-480.0,0.00019726,2]
[380140561,1755571849696,-480.0,0.00019726,2]
[380140562,1755571849706,-674.92,0.00019726,2]
[380140563,1755571849715,-243.22238701,0.00019726,2]
[380140564,1755571849725,-480.0,0.00019726,2]
[380140565,1755571849735,-480.0,0.00019726,2]
[380140566,1755571849744,-597.184088,0.00019726,2]
[380140567,1755571849753,-597.184088,0.00019726,2]
[380140568,1755571849763,-497.02014658,0.00019726,2]
[380140569,1755571849772,-480.0,0.00019726,2]
[380140570,1755571849781,-480.0,0.00019726,2]
[380140571,1755571849790,-597.184088,0.00019726,2]
[380140572,1755571849800,-597.184088,0.00019726,2]
[380140573,1755571849809,-480.0,0.00019726,2]
[380140574,1755571849819,-1308.25,0.00019726,2]
[380140575,1755571849828,-480.0,0.00019726,2]
[380140576,1755571849838,-151.0,0.00019726,2]
[380140577,1755571849847,-480.0,0.00019726,2]
[380140578,1755571849856,-151.0,0.00019726,2]
[380140579,1755571849865,-151.0,0.00019726,2]
[380140580,1755571849876,-151.0,0.00019726,2]
[380140581,1755571849886,-151.0,0.00019726,2]
[380140582,1755571849898,-151.0,0.00019726,2]
[380140583,1755571849907,-480.0,0.00019726,2]
[380140584,1755571849916,-348.507292,0.00019726,2]
[380140585,1755571849925,-348.507292,0.00019726,2]
[380140586,1755571849934,-151.0,0.00019726,2]
[380140587,1755571849944,-151.0,0.00019726,2]
[380140588,1755571849954,-348.507292,0.00019726,2]
[380140589,1755571849964,-348.507292,0.00019726,2]
[380140590,1755571849975,-151.0,0.00019726,2]
[380140591,1755571849986,-153.196318,0.00019726,2]
[380140592,1755571849996,-468.4591498,0.00019726,2]
[380140593,1755571850009,-183.082645,0.00019726,2]
[380140594,1755571850019,-183.082645,0.00019726,2]
[380140595,1755571850030,-480.0,0.00019726,2]
[380140596,1755571850039,-151.0,0.00019726,2]
[380140597,1755571850049,-151.0,0.00019726,2]
[380140598,1755571850060,-480.0,0.00019726,2]
[380140599,1755571850069,-183.082645,0.00019726,2]
[380140600,1755571850079,-183.082645,0.00019726,2]
[380140601,1755571850090,-480.0,0.00019726,2]
[380140602,1755571850101,-151.0,0.00019726,2]
[380140603,1755571850111,-151.854492,0.00019726,2]
[380140604,1755571850120,-480.0,0.00019726,2]
[380140605,1755571850130,-480.0,0.00019726,2]
[380140606,1755571850139,-151.0,0.00019726,2]
[380140607,1755571850148,-151.0,0.00019726,2]
[380140608,1755571850157,-480.0,0.00019726,2]
[380140609,1755571850167,-951.37,0.00019726,2]
[380140610,1755571850176,-151.0,0.00019726,2]
[380140611,1755571850186,-621.27,0.00019726,2]
[380140612,1755571850195,-151.0,0.00019726,2]
[380140613,1755571850204,-151.0,0.00019726,2]
[380140614,1755571850214,-151.0,0.00019726,2]
[380140615,1755571850223,-151.0,0.00019726,2]
[380140616,1755571850233,-887.26,0.00019726,2]
[380140617,1755571850243,-151.0,0.00019726,2]
[380140618,1755571850252,-480.0,0.00019726,2]
[380140619,1755571850263,-151.0,0.00019726,2]
[380140620,1755571850272,-151.0,0.00019726,2]
[380140621,1755571850281,-480.0,0.00019726,2]
[380140622,1755571850291,-151.0,0.00019726,2]
[380140623,1755571850300,-299.766118,0.00019726,2]
[380140624,1755571850309,-480.0,0.00019726,2]
[380140625,1755571850318,-582.64,0.00019726,2]
[380140626,1755571850327,-480.0,0.00019726,2]
[380140627,1755571850337,-480.0,0.00019726,2]
[380140628,1755571850346,-480.0,0.00019726,2]
[380140629,1755571850355,-151.493932,0.00019726,2]
[380140630,1755571850364,-641.38,0.00019726,2]
[380140631,1755571850374,-1551.782846,0.00019726,2]
[380140632,1755571850383,-1551.782846,0.00019726,2]
[380140633,1755571850392,-1058.1,0.00019726,2]
[380140634,1755571850401,-1551.782846,0.00019726,2]
[380140635,1755571850411,-1551.782846,0.00019726,2]
[380140636,1755571850420,-484.26863453,0.00019726,2]
[380140637,1755571850429,-480.0,0.00019726,2]
[380140638,1755571850438,-513.86,0.00019726,2]
[380140639,1755571850447,-488.84941899,0.00019726,2]
[380140640,1755571850457,-151.0,0.00019726,2]
[380140641,1755571850466,-151.0,0.00019726,2]
[380140642,1755571850475,-480.0,0.00019726,2]
[380140643,1755571850484,-2226.18,0.00019726,2]
[380140644,1755571850494,-480.0,0.00019726,2]
[380140645,1755571850503,-165.814009,0.00019726,2]
[380140646,1755571850581,-165.814009,0.00019726,2]
[380140647,1755571850590,-165.814009,0.00019726,2]
[380140648,1755571850600,-468.51459334,0.00019726,2]
[380140649,1755571850609,-165.814009,0.00019726,2]
[380140650,1755571850619,-151.0,0.00019726,2]
[380140651,1755571850628,-151.0,0.00019726,2]
[380140652,1755571850637,-1389.47,0.00019726,2]
[380140653,1755571850646,-233.851648,0.00019726,2]
[380140654,1755571850656,-480.0,0.00019726,2]
[380140655,1755571850665,-480.0,0.00019726,2]
[380140656,1755571850675,-233.851648,0.00019726,2]
[380140657,1755571850684,-233.851648,0.00019726,2]
[380140658,1755571850693,-233.851648,0.00019726,2]
[380140659,1755571850703,-480.0,0.00019726,2]
[380140660,1755571850712,-220.46717816,0.00019726,2]
[380140661,1755571850721,-480.0,0.00019726,2]
[380140662,1755571850730,-480.0,0.00019726,2]
[380140663,1755571850740,-480.0,0.00019726,2]
[380140664,1755571850749,-151.757454,0.00019726,2]
[380140665,1755571850758,-480.0,0.00019726,2]
[380140666,1755571850767,-480.0,0.00019726,2]
[380140667,1755571850777,-480.0,0.00019726,2]
[380140668,1755571850787,-151.0,0.00019726,2]
[380140669,1755571850796,-151.0,0.00019726,2]
[380140670,1755571850805,-409.93891646,0.00019726,2]
[380140671,1755571850815,-480.0,0.00019726,2]
[380140672,1755571850824,-480.0,0.00019726,2]
[380140673,1755571850834,-1060.68,0.00019726,2]
[380140674,1755571850843,-196.61496,0.00019726,2]
[380140675,1755571850853,-1515.48,0.00019726,2]
[380140676,1755571850863,-196.61496,0.00019726,2]
[380140677,1755571850872,-2340.91,0.00019726,2]
[380140678,1755571850882,-196.61496,0.00019726,2]
[380140679,1755571850892,-196.61496,0.00019726,2]
[380140680,1755571850901,-427.753188,0.00019726,2]
[380140681,1755571850910,-151.0,0.00019726,2]
[380140682,1755571850919,-427.753188,0.00019726,2]
[380140683,1755571850930,-151.0,0.00019726,2]
[380140684,1755571850939,-427.753188,0.00019726,2]
[380140685,1755571850948,-427.753188,0.00019726,2]
[380140686,1755571850958,-1144.76,0.00019726,2]
[380140687,1755571850967,-151.0,0.00019726,2]
[380140688,1755571850976,-480.0,0.00019726,2]
[380140689,1755571850985,-152.749474,0.00019726,2]
[380140690,1755571850994,-1844.46,0.00019726,2]
[380140691,1755571851007,-480.0,0.00019726,2]
[380140692,1755571851017,-480.0,0.00019726,2]
[380140693,1755571851026,-572.45526,0.00019726,2]
[380140694,1755571851036,-572.45526,0.00019726,2]
[380140695,1755571851046,-151.0,0.00019726,2]
[380140696,1755571851056,-1686.71,0.00019726,2]
[380140697,1755571851065,-151.0,0.00019726,2]
[380140698,1755571851074,-2113.96,0.00019726,2]
[380140699,1755571851083,-572.45526,0.00019726,2]
[380140700,1755571851093,-572.45526,0.00019726,2]
[380140701,1755571851102,-151.0,0.00019726,2]
[380140702,1755571851111,-151.0,0.00019726,2]
[380140703,1755571851121,-699.31,0.00019726,2]
[380140704,1755571851130,-151.0,0.00019726,2]
[380140705,1755571851140,-151.0,0.00019726,2]
[380140706,1755571851149,-151.0,0.00019726,2]
[380140707,1755571851158,-480.0,0.00019726,2]
[380140708,1755571851167,-151.0,0.00019726,2]
[380140709,1755571851177,-151.0,0.00019726,2]
[380140710,1755571851187,-480.0,0.00019726,2]
[380140711,1755571851196,-151.0,0.00019726,2]
[380140712,1755571851205,-790.91,0.00019726,2]
[380140713,1755571851215,-625.80042618,0.00019726,2]
[380140714,1755571851224,-480.0,0.00019726,2]
[380140715,1755571851234,-1144.75,0.00019726,2]
[380140716,1755571851244,-480.0,0.00019726,2]
[380140717,1755571851253,-498.42137998,0.00019726,2]
[380140718,1755571851263,-1081.01,0.00019726,2]
[380140719,1755571851273,-480.0,0.00019726,2]
[380140720,1755571851282,-480.0,0.00019726,2]
[380140721,1755571851292,-932.47,0.00019726,2]
[380140722,1755571851302,-480.0,0.00019726,2]
[380140723,1755571851311,-480.0,0.00019726,2]
[380140724,1755571851321,-151.0,0.00019726,2]
[380140725,1755571851330,-151.0,0.00019726,2]
[380140726,1755571851341,-151.0,0.00019726,2]
[380140727,1755571851350,-480.0,0.00019726,2]
[380140728,1755571851359,-151.0,0.00019726,2]
[380140729,1755571851369,-151.0,0.00019726,2]
[380140730,1755571851378,-151.0,0.00019726,2]
[380140731,1755571851387,-480.0,0.00019726,2]
[380140732,1755571851396,-5557.56,0.00019726,2]
[380140733,1755571851406,-489.9098814,0.00019726,2]
[380140734,1755571851416,-480.0,0.00019726,2]
[380140735,1755571851426,-470.02391181,0.00019726,2]
[380140736,1755571851435,-3506.17,0.00019726,2]
[380140737,1755571851444,-480.0,0.00019726,2]
[380140738,1755571851453,-480.0,0.00019726,2]
[380140739,1755571851464,-677.87,0.00019726,2]
[380140740,1755571851473,-480.0,0.00019726,2]
[380140741,1755571851482,-2630.2,0.00019726,2]
[380140742,1755571851491,-1069.27,0.00019726,2]
[380140743,1755571851500,-615.84,0.00019726,2]
[380140744,1755571851510,-480.0,0.00019726,2]
[380140745,1755571851520,-480.0,0.00019726,2]
[380140746,1755571851530,-151.0,0.00019726,2]
[380140747,1755571851539,-151.0,0.00019726,2]
[380140748,1755571851548,-386.77145185,0.00019726,2]
[380140749,1755571851557,-151.0,0.00019726,2]
[380140750,1755571851567,-151.0,0.00019726,2]
[380140751,1755571851576,-151.0,0.00019726,2]
[380140752,1755571851585,-151.0,0.00019726,2]
[380140753,1755571851594,-480.0,0.00019726,2]
[380140754,1755571851604,-238.749711,0.00019726,2]
[380140755,1755571851613,-480.0,0.00019726,2]
[380140756,1755571851623,-484.39539793,0.00019726,2]
[380140757,1755571851633,-935.17,0.00019726,2]
[380140758,1755571851642,-480.0,0.00019726,2]
[380140759,1755571851652,-6302.88,0.00019726,2]
[380140760,1755571851662,-480.0,0.00019726,2]
[380140761,1755571851671,-480.0,0.00019726,2]
[380140762,1755571851680,-480.0,0.00019726,2]